bitfinex/quotes_SOLUSD_20240703
["timestamp","ask_amount","ask_price","bid_price","bid_amount"]
[1719970310964,6.4939,153.99,153.9,0.34]
[1719970311794,6.4936,154.0,153.9,0.17]
[1719970312371,6.4927,154.02,153.91,21.8914]
[1719970312571,6.4927,154.02,153.92,0.34]
[1719970313067,26.0627,154.02,153.92,0.17]
[1719970313284,6.4933,154.01,153.92,0.17]
[1719970313777,19.57,154.02,153.92,0.17]
[1719970313979,19.57,154.02,153.92,0.34]
[1719970314378,0.8283643,154.03,153.92,26.32]
[1719970314775,6.4928,154.02,153.92,26.32]
[1719970315186,6.493,154.01,153.92,26.32]
[1719970316002,0.8283643,154.03,153.93,15.2122]
[1719970316313,7.3206643,154.03,153.94,0.34]
[1719970316518,6.4927,154.02,153.93,15.2122]
[1719970318686,0.8283643,154.03,153.93,15.2122]
[1719970318908,26.8907643,154.03,153.93,15.2122]
[1719970321993,6.4926,154.02,153.93,15.2122]
[1719970322190,6.4936,154.0,153.93,15.2122]
[1719970322499,6.4931,154.01,153.93,15.2122]
[1719970323486,6.4927,154.02,153.93,15.2122]
[1719970324219,26.8909643,154.03,153.93,15.2122]
[1719970325195,6.4926,154.02,153.93,15.2122]
[1719970325517,6.4931,154.01,153.93,15.2122]
[1719970327523,7.60813665,154.03,153.95,25.98]
[1719970327722,0.8283643,154.03,153.96,0.34]
[1719970327921,0.8283643,154.03,153.97,15.1046]
[1719970328428,0.8283643,154.03,153.99,6.6576]
[1719970328634,0.8283643,154.03,154.0,0.17]
[1719970329208,0.8283643,154.03,154.01,16.3815]
[1719970329553,0.8283643,154.03,154.02,0.17]
[1719970330208,6.78008754,154.11,154.02,0.34]
[1719970330397,1.0,154.12,154.02,0.34]
[1719970330597,6.4889,154.11,154.02,0.34]
[1719970330824,6.4889,154.11,154.02,0.17]
[1719970332219,6.4893,154.1,154.02,0.17]
[1719970332425,6.4899,154.09,154.01,42.3615]
[1719970332716,6.4893,154.1,154.01,42.3615]
[1719970333028,6.4898,154.09,154.01,42.3615]
[1719970333404,6.4893,154.1,154.01,42.3615]
[1719970333826,1.0,154.12,154.05,6.6161]
[1719970334130,12.98,154.11,154.07,12.98]
[1719970334420,1.0,154.12,154.07,12.98]
[1719970334629,12.98,154.11,154.07,12.98]
[1719970335714,1.0,154.12,154.05,6.6161]
[1719970336727,7.4885,154.12,154.05,6.6161]
[1719970337529,1.0,154.12,154.06,16.0466]
[1719970337923,7.4885,154.12,154.06,16.0466]
[1719970339033,1.0,154.12,154.06,16.0466]
[1719970339206,7.4885,154.12,154.06,16.0466]
[1719970339608,6.4889,154.11,154.06,16.0466]
[1719970339908,6.4893,154.1,154.06,16.0466]
[1719970340709,6.4893,154.1,154.02,25.94]
[1719970340710,6.4897,154.09,154.02,15.4324]
[1719970341201,6.4901,154.08,154.02,15.4324]
[1719970341832,6.4898,154.09,154.02,15.4324]
[1719970342031,6.6591,154.11,154.02,15.4324]
[1719970342206,27.35378129,154.12,154.02,15.4324]
[1719970342406,6.4895,154.1,154.02,15.4324]
[1719970343236,6.4898,154.09,154.02,15.4324]
[1719970343436,27.35378129,154.12,154.02,15.4324]
[1719970343740,6.4901,154.08,154.02,15.4324]
[1719970344510,6.4896,154.1,154.02,15.4324]
[1719970344813,26.0596,154.1,154.02,15.4324]
[1719970345015,6.4896,154.1,154.02,15.4324]
[1719970345222,6.4897,154.09,154.02,15.4324]
[1719970346934,6.4893,154.1,154.02,15.4324]
[1719970348115,6.4909,154.07,154.02,15.4324]
[1719970348323,0.17,154.09,154.02,15.4324]
[1719970348639,0.34,154.09,154.02,15.4324]
[1719970348841,6.491,154.06,154.02,15.4324]
[1719970349041,6.4906,154.07,154.02,15.4324]
[1719970349832,6.4921,154.04,153.98,16.1677]
[1719970350026,6.4923,154.03,153.98,16.1677]
[1719970350415,6.4914,154.05,153.98,16.1677]
[1719970350712,6.661,154.06,153.98,16.1677]
[1719970351629,26.231,154.06,153.98,16.1677]
[1719970352019,6.661,154.06,153.98,16.1677]
[1719970352224,6.491,154.06,153.98,16.1677]
[1719970352731,19.57,154.06,153.98,16.1677]
[1719970352935,6.4921,154.04,153.98,16.1677]
[1719970353126,6.4927,154.02,153.98,16.1677]
[1719970353522,6.4923,154.03,153.98,16.1677]
[1719970353849,6.4918,154.04,153.98,16.1677]
[1719970354025,6.4919,154.04,153.98,16.1677]
[1719970355729,12.99,154.02,153.98,29.1577]
[1719970357154,19.57,154.04,153.98,16.1677]
[1719970357362,12.99,153.99,153.94,15.0992]
[1719970357531,12.99,153.99,153.94,28.0892]
[1719970358636,12.99,154.0,153.95,12.99]
[1719970360245,12.99,153.98,153.94,15.0992]
[1719970360748,12.99,153.97,153.94,15.0992]
[1719970360940,12.99,153.96,153.94,15.0992]
[1719970361119,12.99,153.95,153.92,6.5242]
[1719970361320,12.99,153.94,153.9,15.1854]
[1719970361635,12.99,153.95,153.9,28.1754]
[1719970362041,12.99,153.96,153.91,12.99]
[1719970365631,12.99,153.95,153.9,28.1754]
[1719970367260,12.99,153.95,153.9,15.1854]
[1719970367428,12.99,153.95,153.9,28.1754]
[1719970367754,12.99,153.94,153.9,28.1754]
[1719970370332,12.99,153.94,153.9,15.1854]
[1719970370552,12.99,153.91,153.88,6.3883]
[1719970371053,12.99,153.91,153.86,28.2776]
[1719970371642,6.4967,153.93,153.86,28.2776]
[1719970371643,12.99,153.9,153.86,28.2776]
[1719970373352,12.99,153.89,153.86,15.2876]
[1719970373654,12.99,153.88,153.84,6.5497]
[1719970374594,12.99,153.88,153.84,19.5397]
[1719970375439,26.0673,153.91,153.84,19.5397]
[1719970375640,12.99,153.89,153.84,19.5397]
[1719970376640,12.99,153.88,153.84,19.5397]
[1719970379175,12.99,153.87,153.84,6.5497]
[1719970379334,12.99,153.87,153.82,15.6019]
[1719970379667,19.4894,153.86,153.82,15.6019]
[1719970379847,12.99,153.85,153.82,15.6019]
[1719970380033,6.499,153.87,153.82,15.6019]
[1719970380239,12.99,153.85,153.82,15.6019]
[1719970382443,6.5014,153.82,153.78,16.2959]
[1719970382763,12.99,153.79,153.76,6.078]
[1719970382967,71.7,153.84,153.74,16.2959]
[1719970382968,12.99,153.77,153.74,16.2959]
[1719970384055,12.99,153.76,153.74,16.2959]
[1719970384443,6.5024,153.79,153.71,6.078]
[1719970384444,19.57,153.8,153.72,12.99]
[1719970384748,6.5015,153.81,153.73,12.99]
[1719970384749,6.5024,153.79,153.73,12.99]
[1719970384950,6.5024,153.79,153.71,6.078]
[1719970384951,12.99,153.77,153.72,12.99]
[1719970385769,6.502,153.8,153.71,6.078]
[1719970386358,32.5615,153.82,153.71,6.078]
[1719970386555,0.17,153.83,153.72,0.17]
[1719970386777,6.502,153.8,153.72,0.17]
[1719970387176,6.502,153.8,153.71,6.078]
[1719970387977,19.74,153.81,153.71,6.078]
[1719970388176,0.17,153.8,153.71,6.078]
[1719970389484,6.6719,153.8,153.71,6.078]
[1719970389789,0.17,153.8,153.71,6.078]
[1719970389981,33.01124391,153.82,153.71,6.078]
[1719970390479,45.63,153.79,153.71,6.078]
[1719970390657,6.5037,153.76,153.71,6.078]
[1719970390866,6.5032,153.77,153.71,6.078]
[1719970391381,6.6728,153.78,153.71,6.078]
[1719970393056,0.17,153.78,153.71,6.078]
[1719970394083,6.5028,153.78,153.71,6.078]
[1719970395459,6.5038,153.76,153.71,6.078]
[1719970395863,6.5032,153.77,153.71,6.078]
[1719970396364,0.17,153.79,153.71,6.078]
[1719970396572,26.0715,153.81,153.71,6.078]
[1719970397289,19.57,153.81,153.71,6.078]
[1719970397681,26.0716,153.81,153.71,6.078]
[1719970398193,6.5016,153.81,153.71,6.078]
[1719970398762,26.35124391,153.82,153.72,0.17]
[1719970398978,26.35124391,153.82,153.73,16.5333]
[1719970399184,32.85234391,153.82,153.73,16.5333]
[1719970400087,6.5017,153.81,153.73,16.5333]
[1719970402488,6.78124391,153.82,153.77,26.06]
[1719970402697,6.2286,153.91,153.79,15.567]
[1719970402911,6.4978,153.9,153.8,6.2349]
[1719970403479,6.4982,153.89,153.8,6.2349]
[1719970403677,6.4978,153.9,153.8,6.2349]
[1719970404087,6.4978,153.9,153.8,32.2949]
[1719970405006,6.4981,153.89,153.8,32.2949]
[1719970405175,6.4981,153.89,153.8,6.2349]
[1719970405378,6.499,153.87,153.8,6.2349]
[1719970406377,6.4985,153.88,153.8,6.2349]
[1719970406572,0.17,153.9,153.8,6.2349]
[1719970406877,6.4977,153.9,153.8,6.2349]
[1719970407089,19.57,153.9,153.8,6.2349]
[1719970408378,6.6681,153.89,153.8,6.2349]
[1719970410695,6.4993,153.87,153.8,6.2349]
[1719970410895,0.17,153.89,153.8,6.2349]
[1719970411193,6.4994,153.86,153.8,6.2349]
[1719970411505,6.4998,153.85,153.8,6.2349]
[1719970411673,0.17,153.89,153.8,6.2349]
[1719970411874,0.34,153.89,153.8,6.2349]
[1719970412516,6.4995,153.86,153.8,6.2349]
[1719970413393,6.4991,153.87,153.8,6.2349]
[1719970413788,32.85093652,153.88,153.8,6.2349]
[1719970416896,6.499,153.87,153.8,6.2349]
[1719970417706,6.4994,153.86,153.8,6.2349]
[1719970417874,0.17,153.87,153.8,6.2349]
[1719970418080,0.34,153.87,153.8,6.2349]
[1719970418703,6.5001,153.85,153.8,6.2349]
[1719970420578,6.839,153.87,153.8,6.2349]
[1719970420784,26.409,153.87,153.8,6.2349]
[1719970421707,13.02,153.85,153.8,19.2549]
[1719970423104,13.02,153.84,153.8,6.2349]
[1719970424110,26.4091,153.87,153.8,6.2349]
[1719970424111,13.02,153.85,153.8,19.2549]
[1719970427107,13.02,153.85,153.8,6.2349]
[1719970427409,19.5199,153.85,153.8,6.2349]
[1719970427787,13.02,153.84,153.8,6.2349]
[1719970429709,13.02,153.83,153.8,6.2349]
[1719970429897,6.5007,153.83,153.79,15.567]
[1719970430085,19.57,153.83,153.75,22.43]
[1719970430295,13.02,153.78,153.75,15.9846]
[1719970430485,13.02,153.76,153.75,15.9846]
[1719970430809,13.02,153.76,153.72,13.02]
[1719970431893,6.5026,153.79,153.71,21.5269]
[1719970432093,0.17,153.78,153.71,21.5269]
[1719970432316,0.34,153.78,153.71,21.5269]
[1719970432505,0.34,153.78,153.71,15.2036]
[1719970432506,6.5035,153.77,153.71,15.2036]
[1719970432716,0.17,153.76,153.71,15.2036]
[1719970433422,6.6737,153.76,153.71,15.2036]
[1719970435008,0.17,153.76,153.71,15.2036]
[1719970435206,19.57,153.79,153.71,15.2036]
[1719970435495,0.34,153.78,153.71,15.2036]
[1719970435998,6.5061,153.7,153.65,0.8283643]
[1719970436197,45.63,153.75,153.65,0.8283643]
[1719970436410,6.506,153.71,153.65,0.8283643]
[1719970437496,0.17,153.72,153.65,0.8283643]
[1719970437497,6.5067,153.69,153.65,0.8283643]
[1719970437911,6.507,153.68,153.65,0.8283643]
[1719970438329,6.5066,153.69,153.65,0.8283643]
[1719970439134,26.23,153.72,153.65,0.8283643]
[1719970439135,52.1378,153.66,153.65,0.8283643]
[1719970439311,52.4778,153.66,153.65,0.8283643]
[1719970439929,52.4778,153.66,153.52,21.9193]
[1719970439930,6.5096,153.62,153.52,21.9193]
[1719970440126,6.51,153.61,153.52,21.9193]
[1719970440328,26.06,153.63,153.52,21.9193]
[1719970442414,6.5087,153.64,153.52,21.9193]
[1719970442619,6.6783,153.65,153.53,0.34]
[1719970443223,6.6783,153.65,153.53,20.34]
[1719970443729,6.78971972,153.67,153.54,41.0755]
[1719970443918,6.78971972,153.67,153.55,6.6683]
[1719970444118,26.35971972,153.67,153.55,6.6683]
[1719970444442,6.509,153.64,153.55,6.3283]
[1719970444643,26.35971972,153.67,153.55,6.3283]
[1719970444644,6.5092,153.63,153.55,6.3283]
[1719970444937,6.5098,153.62,153.55,6.3283]
[1719970445133,6.5091,153.63,153.55,6.3283]
[1719970445435,6.5087,153.64,153.55,6.3283]
[1719970446518,6.5093,153.63,153.55,6.3283]
[1719970447338,6.6796,153.62,153.55,6.3283]
[1719970448124,6.51,153.61,153.55,6.3283]
[1719970449035,6.6796,153.62,153.55,6.3283]
[1719970449236,6.679,153.64,153.55,6.3283]
[1719970449412,6.6794,153.63,153.55,6.3283]
[1719970449616,6.5096,153.62,153.55,6.3283]
[1719970451123,0.17,153.63,153.55,6.3283]
[1719970451536,19.74,153.64,153.55,6.3283]
[1719970451738,0.17,153.63,153.55,6.3283]
[1719970453334,6.6791,153.63,153.55,6.3283]
[1719970453519,0.17,153.63,153.55,6.3283]
[1719970453719,13.46993476,153.64,153.55,6.3283]
[1719970454015,6.5079,153.66,153.55,6.3283]
[1719970454425,6.5079,153.66,153.56,15.1261]
[1719970455931,6.5084,153.65,153.56,15.1261]
[1719970456240,35.8426,153.64,153.56,15.1261]
[1719970456444,6.51,153.61,153.56,15.1261]
[1719970456635,6.79187667,153.67,153.57,26.06]
[1719970456951,6.5066,153.69,153.58,23.0587]
[1719970457117,6.79258152,153.7,153.6,26.06]
[1719970457317,6.506,153.71,153.61,16.522]
[1719970458123,6.79280117,153.72,153.62,6.2482]
[1719970458335,6.5049,153.73,153.63,26.4]
[1719970459141,6.5054,153.72,153.63,26.4]
[1719970461346,6.5049,153.73,153.63,26.4]
[1719970461550,13.2977309,153.75,153.63,26.4]
[1719970461731,6.5043,153.75,153.66,26.06]
[1719970462617,6.5044,153.74,153.66,26.06]
[1719970463654,6.5044,153.74,153.67,0.84411207]
[1719970463947,6.79378409,153.78,153.68,16.1415]
[1719970464748,6.5037,153.76,153.68,16.1415]
[1719970465336,6.504,153.75,153.68,16.1415]
[1719970465642,6.5049,153.73,153.68,16.1415]
[1719970466025,42.62138409,153.78,153.68,16.1415]
[1719970466026,6.5054,153.72,153.68,16.1415]
[1719970467236,6.505,153.73,153.68,16.1415]
[1719970467743,6.5047,153.74,153.68,16.1415]
[1719970467939,6.5041,153.75,153.68,16.1415]
[1719970468538,0.34,153.76,153.68,16.1415]
[1719970468539,6.5046,153.74,153.68,16.1415]
[1719970468851,6.505,153.73,153.68,16.1415]
[1719970470954,6.5045,153.74,153.68,16.1415]
[1719970471155,0.17,153.76,153.68,16.1415]
[1719970471357,0.17,153.75,153.68,16.1415]
[1719970471856,0.34,153.75,153.68,16.1415]
[1719970472044,19.57,153.74,153.61,22.5745]
[1719970472355,6.5062,153.7,153.61,22.5745]
[1719970473662,6.5067,153.69,153.61,22.5745]
[1719970473847,0.17,153.7,153.61,22.5745]
[1719970474026,0.34,153.71,153.61,22.5745]
[1719970474953,6.5071,153.68,153.61,22.5745]
[1719970475142,0.34,153.67,153.61,22.5745]
[1719970475657,6.5078,153.66,153.61,22.5745]
[1719970475834,0.34,153.67,153.61,22.5745]
[1719970476274,6.8476,153.67,153.61,22.5745]
[1719970478257,26.0787,153.64,153.56,16.2891]
[1719970478468,26.23,153.63,153.56,16.2891]
[1719970478773,6.5099,153.62,153.56,16.2891]
[1719970479248,26.4,153.63,153.56,16.2891]
[1719970479449,6.8492,153.63,153.56,16.2891]
[1719970482469,0.34,153.63,153.56,16.2891]
[1719970482649,26.36089006,153.63,153.56,16.2891]
[1719970482849,6.5103,153.61,153.56,16.2891]
[1719970483050,6.6796,153.62,153.56,16.2891]
[1719970483775,13.30009006,153.63,153.56,16.2891]
[1719970483977,6.5095,153.62,153.56,16.2891]
[1719970484150,26.53089006,153.63,153.56,16.2891]
[1719970484349,0.34,153.62,153.56,16.2891]
[1719970485877,6.8496,153.62,153.56,16.2891]
[1719970487475,6.51,153.61,153.56,16.2891]
[1719970489161,6.8496,153.62,153.56,16.2891]
[1719970489476,6.5101,153.61,153.56,16.2891]
[1719970490055,0.34,153.62,153.56,16.2891]
[1719970490056,6.5109,153.59,153.56,16.2891]
[1719970490270,0.34,153.62,153.56,16.2891]
[1719970490479,6.5113,153.58,153.56,16.2891]
[1719970490665,6.5109,153.59,153.56,16.2891]
[1719970490981,0.34,153.62,153.52,16.3755]
[1719970490982,6.5113,153.58,153.52,16.3755]
[1719970491467,6.5109,153.59,153.52,16.3755]
[1719970492291,6.6805,153.6,153.52,16.3755]
[1719970492488,0.17,153.6,153.52,16.3755]
[1719970492783,0.34,153.6,153.52,16.3755]
[1719970493493,0.17,153.6,153.52,16.3755]
[1719970494671,6.78779293,153.61,153.52,16.3755]
[1719970495688,6.5071,153.68,153.57,21.2281]
[1719970495890,22.1099,153.72,153.57,21.2281]
[1719970495891,6.5063,153.7,153.57,21.2281]
[1719970496093,6.5063,153.7,153.59,26.06]
[1719970496588,6.5063,153.7,153.6,16.4558]
[1719970497874,0.17,153.69,153.6,16.4558]
[1719970498282,6.5054,153.72,153.62,26.06]
[1719970498702,6.5057,153.71,153.62,26.06]
[1719970500180,6.5062,153.7,153.61,6.7831]
[1719970500374,6.5062,153.7,153.61,32.6731]
[1719970500577,19.57,153.75,153.61,32.6731]
[1719970500891,6.5047,153.74,153.64,26.06]
[1719970501196,6.5053,153.72,153.64,26.06]
[1719970502499,6.505,153.73,153.64,26.06]
[1719970505003,0.17,153.74,153.62,16.051]
[1719970505194,6.5062,153.7,153.62,16.051]
[1719970505387,45.63,153.73,153.62,16.051]
[1719970505594,6.5067,153.69,153.62,16.051]
[1719970506181,6.5062,153.7,153.62,16.051]
[1719970506508,0.17,153.72,153.62,16.051]
[1719970506707,6.5066,153.69,153.62,16.051]
[1719970507220,6.5062,153.7,153.62,16.051]
[1719970508820,6.5066,153.69,153.62,16.051]
[1719970509407,6.507,153.68,153.62,16.051]
[1719970509607,6.5076,153.67,153.62,16.051]
[1719970510109,6.5066,153.69,153.62,16.051]
[1719970510704,6.507,153.68,153.62,16.051]
[1719970511984,6.5075,153.67,153.62,16.051]
[1719970512185,45.8,153.7,153.62,16.051]
[1719970512386,0.34,153.69,153.62,16.051]
[1719970512613,6.5074,153.67,153.62,16.051]
[1719970513198,6.5071,153.68,153.62,16.051]
[1719970513396,0.17,153.69,153.62,16.051]
[1719970513599,20.0,153.75,153.62,16.051]
[1719970513885,6.5056,153.72,153.63,6.2407]
[1719970514088,6.5056,153.72,153.64,16.6197]
[1719970514625,6.5058,153.71,153.64,16.6197]
[1719970517993,61.8908,153.75,153.64,16.6197]
[1719970518193,0.34,153.74,153.64,16.6197]
[1719970518389,19.57,153.73,153.64,16.6197]
[1719970518607,0.34,153.72,153.64,16.6197]
[1719970518803,6.506,153.71,153.64,16.6197]
[1719970519422,6.5062,153.7,153.64,16.6197]
[1719970520614,6.5066,153.69,153.64,16.6197]
[1719970521214,6.5071,153.68,153.64,16.6197]
[1719970522438,19.57,153.67,153.6,15.1382]
[1719970522730,6.5094,153.63,153.6,15.1382]
[1719970523034,6.5097,153.62,153.51,21.2877]
[1719970523823,6.5092,153.63,153.51,21.2877]
[1719970524329,0.17,153.64,153.52,15.0001]
[1719970524505,0.34,153.64,153.52,15.0001]
[1719970524940,6.5092,153.63,153.52,15.0001]
[1719970525225,6.8488,153.64,153.52,15.0001]
[1719970525525,6.6788,153.64,153.52,15.0001]
[1719970525728,6.6788,153.64,153.53,0.34]
[1719970526101,6.6788,153.64,153.53,1.64221448]
[1719970526528,6.5093,153.63,153.53,1.64221448]
[1719970526707,6.5093,153.63,153.53,0.34]
[1719970526904,0.17,153.64,153.52,15.0001]
[1719970527114,0.34,153.64,153.52,15.0001]
[1719970527739,6.51,153.61,153.52,15.0001]
[1719970528223,6.6806,153.6,153.52,15.0001]
[1719970528431,6.5106,153.6,153.52,15.0001]
[1719970528638,6.5108,153.59,153.52,15.0001]
[1719970529712,6.5113,153.58,153.52,15.0001]
[1719970529913,6.5126,153.55,153.52,15.0001]
[1719970530106,26.06,153.59,153.52,15.0001]
[1719970530715,0.17,153.58,153.52,15.0001]
[1719970531529,6.6815,153.58,153.52,15.0001]
[1719970531712,0.17,153.58,153.52,15.0001]
[1719970531911,0.34,153.58,153.52,15.0001]
[1719970532432,6.5121,153.56,153.52,15.0001]
[1719970533035,6.5117,153.57,153.52,15.0001]
[1719970534036,6.8513,153.58,153.52,15.0001]
[1719970534639,12.7489,153.65,153.52,15.0001]
[1719970534937,25.0,153.71,153.52,15.0001]
[1719970534938,6.5095,153.63,153.52,15.0001]
[1719970535143,6.5095,153.63,153.53,1.20359829]
[1719970535434,6.5096,153.62,153.52,15.0001]
[1719970535639,26.06,153.64,153.52,15.0001]
[1719970536006,26.06,153.64,153.54,6.2706]
[1719970536206,32.5691,153.64,153.54,6.2706]
[1719970536408,26.06,153.64,153.54,6.2706]
[1719970537244,6.5098,153.62,153.54,6.2706]
[1719970537916,6.51,153.61,153.54,6.2706]
[1719970539819,6.5104,153.6,153.54,6.2706]
[1719970540739,6.51,153.61,153.54,6.2706]
[1719970541741,6.5095,153.62,153.54,6.2706]
[1719970542244,6.51,153.61,153.54,6.2706]
[1719970542438,6.5096,153.62,153.54,6.2706]
[1719970545823,6.51,153.61,153.54,6.2706]
[1719970546022,6.5104,153.6,153.54,6.2706]
[1719970549027,6.5109,153.59,153.54,6.2706]
[1719970549439,6.5117,153.57,153.52,15.0001]
[1719970549643,6.5114,153.58,153.52,15.0001]
[1719970550648,26.06,153.58,153.52,15.0001]
[1719970550954,26.06,153.55,153.5,0.8283643]
[1719970551154,6.5135,153.53,153.5,0.8283643]
[1719970551530,6.513,153.54,153.5,0.8283643]
[1719970552935,0.17,153.56,153.5,0.8283643]
[1719970553138,26.23,153.56,153.5,0.8283643]
[1719970553634,6.513,153.54,153.5,0.8283643]
[1719970554955,6.5135,153.53,153.5,0.8283643]
[1719970557353,6.5142,153.51,153.5,0.8283643]
[1719970557652,26.06,153.53,153.5,0.8283643]
[1719970558233,32.5734,153.53,153.5,0.8283643]
[1719970558661,6.5138,153.52,153.5,0.8283643]
[1719970561131,6.5142,153.51,153.5,0.8283643]
[1719970561353,6.6842,153.51,153.5,0.8283643]
[1719970562340,6.8542,153.51,153.5,0.8283643]
[1719970563646,26.4442,153.51,153.5,0.8283643]
[1719970563854,46.4442,153.51,153.5,0.8283643]
[1719970567043,16.2816,153.55,153.5,0.8283643]
[1719970567245,26.06,153.53,153.5,0.8283643]
[1719970567437,6.5142,153.51,153.5,0.8283643]
[1719970567867,19.5942,153.51,153.5,0.8283643]
[1719970568260,19.7642,153.51,153.5,0.8283643]
[1719970568468,19.9342,153.51,153.5,0.8283643]
[1719970569241,39.5242,153.51,153.5,0.8283643]
[1719970569663,6.5138,153.52,153.5,0.8283643]
[1719970569846,6.3204,153.58,153.5,0.8283643]
[1719970570476,13.08,153.54,153.51,16.3263]
[1719970570641,6.56706016,153.59,153.51,16.3263]
[1719970570837,6.51,153.61,153.53,13.08]
[1719970571041,13.08,153.57,153.52,13.08]
[1719970571461,13.08,153.58,153.53,13.08]
[1719970571670,6.5099,153.62,153.53,13.08]
[1719970571967,6.5099,153.62,153.51,16.3263]
[1719970572654,6.5091,153.63,153.52,0.34]
[1719970572843,45.71,153.64,153.52,0.17]
[1719970573043,45.71,153.64,153.51,16.3263]
[1719970573778,6.5104,153.6,153.51,16.3263]
[1719970574147,19.59,153.61,153.51,16.3263]
[1719970574341,6.511,153.59,153.51,16.3263]
[1719970574643,6.5105,153.6,153.51,16.3263]
[1719970575451,6.5108,153.59,153.51,16.3263]
[1719970576048,32.8003,153.61,153.51,16.3263]
[1719970576271,0.17,153.6,153.51,16.3263]
[1719970576447,0.34,153.6,153.51,16.3263]
[1719970576970,6.8505,153.6,153.51,16.3263]
[1719970577459,6.6805,153.6,153.51,16.3263]
[1719970578151,6.5108,153.59,153.51,16.3263]
[1719970578351,0.17,153.6,153.51,16.3263]
[1719970578352,6.5113,153.58,153.51,16.3263]
[1719970578670,6.5109,153.59,153.51,16.3263]
[1719970579044,0.17,153.6,153.51,16.3263]
[1719970579247,0.34,153.6,153.51,16.3263]
[1719970580181,6.511,153.59,153.51,16.3263]
[1719970580368,0.17,153.58,153.51,16.3263]
[1719970581766,6.511,153.59,153.51,16.3263]
[1719970582378,0.34,153.6,153.51,16.3263]
[1719970582875,22.5453,153.67,153.52,6.2431]
[1719970583075,6.5087,153.64,153.53,16.4892]
[1719970583456,32.6283,153.65,153.54,0.17]
[1719970584153,32.6283,153.65,153.54,1.32759372]
[1719970584359,26.12,153.65,153.54,0.17]
[1719970585963,6.5092,153.63,153.54,0.17]
[1719970588775,6.5104,153.6,153.53,16.4892]
[1719970589755,6.5101,153.61,153.53,16.4892]
[1719970589961,6.6796,153.62,153.53,16.4892]
[1719970591681,6.5104,153.6,153.53,16.4892]
[1719970592180,6.5111,153.59,153.53,16.4892]
[1719970592486,0.17,153.62,153.53,16.4892]
[1719970592487,45.88,153.62,153.53,16.4892]
[1719970592663,62.1543,153.62,153.53,16.4892]
[1719970592860,0.17,153.61,153.53,16.4892]
[1719970593063,61.9871,153.59,153.53,16.4892]
[1719970593386,0.34,153.58,153.53,16.4892]
[1719970593560,6.5117,153.57,153.53,16.4892]
[1719970594283,6.8513,153.58,153.53,16.4892]
[1719970594465,6.5117,153.57,153.53,16.4892]
[1719970596676,6.5127,153.55,153.5,0.8283643]
[1719970598878,32.9722,153.56,153.5,0.8283643]
[1719970599978,45.71,153.59,153.5,0.8283643]
[1719970600178,6.6813,153.58,153.5,0.8283643]
[1719970600479,6.8513,153.58,153.5,0.8283643]
[1719970601176,19.59,153.54,153.5,0.8283643]
[1719970601366,6.5142,153.51,153.5,0.8283643]
[1719970601564,6.8542,153.51,153.5,0.8283643]
[1719970603463,0.17,153.51,153.5,0.8283643]